fUST/lending_fUST_20250609
["ID","MTS","AMOUNT","RATE_DAILY","PERIOD"]
[365042087,1749421848585,-440.0,0.00023561,4]
[365042088,1749421848595,-676.67,0.00023561,4]
[365042089,1749421848604,-928.14,0.00023561,4]
[365042090,1749421848614,-1055.9,0.00023561,4]
[365042091,1749421848623,-921.11,0.00023561,4]
[365042092,1749421848633,-440.0,0.00023561,4]
[365042093,1749421848643,-1549.85,0.00023561,4]
[365042094,1749421848652,-652.19,0.00023561,4]
[365042095,1749421848662,-580.9,0.00023561,4]
[365042096,1749421848671,-1359.84,0.00023561,4]
[365042097,1749421848681,-440.0,0.00023561,4]
[365042098,1749421848691,-609.24,0.00023561,4]
[365042099,1749421848701,-747.48,0.00023561,4]
[365042100,1749421848711,-1446.95699463,0.00023572,2]
[365042101,1749421848721,-600.0,0.00023617,2]
[365042102,1749421848730,-1200.0,0.00023621,2]
[365042103,1749421848740,-1000.0,0.00023621,2]
[365042104,1749421848750,-500.0,0.00023621,2]
[365042105,1749421848760,-352.94100457,0.00023621,2]
[365042106,1749421848770,-1446.95699463,0.00023685,2]
[365042107,1749421848780,-163.35411962,0.00023699,2]
[365042108,1749421848790,-167.30776617,0.00023699,2]
[365042109,1749421848799,-207501.5346595,0.00023699,2]
[365042110,1749421848809,-184.231614,0.00023699,7]
[365042111,1749421848818,-151.0,0.00023699,7]
[365042112,1749421848828,-338454.50457004,0.000237,2]
[365042113,1749421848844,-5113.02886269,0.000237,2]
[365042114,1749421848856,-4603.657962,0.000237,2]
[365042115,1749421848884,-383.112,0.000237,2]
[365042116,1749421848895,-772.79413623,0.000237,2]
[365042117,1749421848907,-493.28256153,0.000237,2]
[365042118,1749421849070,-533.0588397,0.000199,2]
[365042119,1749421849155,-440.0,0.00019178,2]
[365042120,1749421849165,-2141.84195464,0.000199,2]
[365042121,1749421849175,-2674.90079411,0.00020072,2]
[365042122,1749421849185,-2674.90079411,0.00020245,2]
[365042123,1749421849195,-2674.90079411,0.00020417,3]
[365042124,1749421849205,-2674.90079411,0.0002059,3]
[365042125,1749421849216,-2674.90079411,0.00020762,3]
[365042126,1749421849226,-2674.90079411,0.00020934,4]
[365042127,1749421849236,-2674.90079411,0.00021107,4]
[365042128,1749421849246,-2674.90079411,0.00021279,5]
[365042129,1749421849256,-2674.90079411,0.00021452,5]
[365042130,1749421849265,-2674.90079411,0.00021624,5]
[365042131,1749421849275,-2674.90079411,0.00021797,6]
[365042132,1749421849285,-2674.90079411,0.00021969,6]
[365042133,1749421849296,-2674.90079411,0.00022141,6]
[365042134,1749421849307,-18882.69467237,0.000237,2]
[365042135,1749421849316,-151.0,0.000237,7]
[365042136,1749421849326,-176.7524085,0.00023753,2]
[365042137,1749421849336,-158.6873432,0.00023753,2]
[365042138,1749421849351,-159.5513002,0.00023753,2]
[365042139,1749421849361,-573.126752,0.00023753,2]
[365042140,1749421849372,-151.0,0.0002378,7]
[365042141,1749421849383,-151.0,0.0002378,7]
[365042142,1749421849394,-151.0,0.0002378,7]
[365042143,1749421849404,-220.742564,0.0002378,7]
[365042144,1749421849414,-151.0,0.0002378,7]
[365042145,1749421849425,-151.0,0.0002378,7]
[365042146,1749421849435,-151.0,0.0002378,7]
[365042147,1749421849445,-590.060618,0.0002378,2]
[365042148,1749421849456,-590.060618,0.0002378,2]
[365042149,1749421849466,-151.0,0.0002378,7]
[365042150,1749421849477,-151.0,0.0002378,7]
[365042151,1749421849488,-151.0,0.0002378,7]
[365042152,1749421849499,-151.0,0.0002378,7]
[365042153,1749421849508,-151.0,0.0002378,7]
[365042154,1749421849518,-151.0,0.0002378,7]
[365042155,1749421849527,-151.0,0.0002378,7]
[365042156,1749421849537,-151.0,0.0002378,7]
[365042157,1749421849547,-151.0,0.0002378,7]
[365042158,1749421849558,-151.0,0.0002378,7]
[365042159,1749421849567,-151.0,0.0002378,7]
[365042160,1749421849577,-151.0,0.0002378,7]
[365042161,1749421849587,-439574.91811548,0.0002378,5]
[365042162,1749421851151,150.68,0.00017302,2]
[365042163,1749421932416,192.37,0.00017309,2]
[365042164,1749422012913,189.92,0.00017445,2]
[365042165,1749422094392,187.5,0.00017448,2]
[365042166,1749422174555,185.12,0.00017303,2]
[365042167,1749422257219,182.76,0.00017308,2]
[365042168,1749422337567,180.43,0.00017304,2]
[365042169,1749422416296,195.72,0.00017261,2]
[365042170,1749422478296,294.664524,0.00013699,2]
[365042172,1749422497708,193.22,0.00017285,2]
[365042174,1749422580030,190.77,0.00017263,2]
[365042175,1749422662334,203.72,0.00017287,2]
[365042176,1749422742441,201.13,0.00017379,2]
[365042177,1749422822398,198.57,0.00017528,2]
[365042178,1749422903055,196.04,0.00017273,2]
[365042179,1749422983203,193.54,0.00017393,2]
[365042227,1749423032261,-351.63552655,0.00018221,2]
[365042234,1749423032316,-35.45447345,0.00018221,2]
[365042236,1749423032326,-580.63,0.00019049,2]
[365042238,1749423032336,-830.9530999,0.00019134,2]
[365042240,1749423032346,-300.0,0.00019177,2]
[365042242,1749423032355,-300.0,0.00019177,2]
[365042243,1749423032365,-300.0,0.00019177,2]
[365042245,1749423032376,-430.0,0.00019178,2]
[365042247,1749423032387,-430.0,0.00019178,2]
[365042249,1749423032396,-308.24959544,0.00019178,2]
[365042251,1749423032406,-309.98991249,0.00019178,2]
[365042253,1749423032416,-440.0,0.00019178,2]
[365042255,1749423032426,-325.29681802,0.00019178,2]
[365042257,1749423032436,-440.0,0.00019178,2]
[365042259,1749423032446,-440.0,0.00019178,2]
[365042261,1749423032456,-440.0,0.00019178,2]
[365042263,1749423032466,-440.0,0.00019178,2]
[365042265,1749423032476,-440.0,0.00019178,2]
[365042267,1749423032486,-440.0,0.00019178,2]
[365042269,1749423032495,-394.53,0.00019178,2]
[365042271,1749423032506,-440.0,0.00019178,2]
[365042273,1749423032516,-450.0,0.00019178,2]
[365042274,1749423032525,-399.86829182,0.00019178,2]
[365042276,1749423032681,-395.95031128,0.00019178,2]
[365042277,1749423032727,-440.0,0.00019178,2]
[365042278,1749423032737,-407.827277,0.00019178,2]
[365042279,1749423032747,-440.0,0.00019178,2]
[365042280,1749423032757,-1142.78,0.00019178,2]
[365042281,1749423032769,-440.0,0.00019178,2]
[365042282,1749423032778,-440.0,0.00019178,2]
[365042283,1749423032788,-235.10267865,0.00019178,2]
[365042284,1749423032798,-454.93,0.00019178,2]
[365042285,1749423032813,-272.5430213,0.00019178,2]
[365042286,1749423032823,-440.0,0.00019178,2]
[365042287,1749423032833,-440.0,0.00019178,2]
[365042288,1749423032843,-206.82,0.00019178,2]
[365042289,1749423032853,-440.0,0.00019178,2]
[365042290,1749423032863,-440.0,0.00019178,2]
[365042291,1749423032873,-440.0,0.00019178,2]
[365042292,1749423032882,-440.0,0.00019178,2]
[365042293,1749423032893,-440.0,0.00019178,2]
[365042294,1749423032902,-440.0,0.00019178,2]
[365042295,1749423032914,-448.33,0.00019178,2]
[365042296,1749423032924,-440.0,0.00019178,2]
[365042297,1749423032934,-440.0,0.00019178,2]
[365042298,1749423032944,-440.0,0.00019178,2]
[365042300,1749423032954,-440.0,0.00019178,2]
[365042302,1749423032963,-440.0,0.00019178,2]
[365042305,1749423032973,-440.0,0.00019178,2]
[365042307,1749423032983,-440.0,0.00019178,2]
[365042309,1749423032993,-440.0,0.00019178,2]
[365042311,1749423033002,-440.0,0.00019178,2]
[365042313,1749423033013,-1198.02,0.00019178,2]
[365042315,1749423033022,-420.0,0.00019178,2]
[365042317,1749423033032,-440.0,0.00019178,2]
[365042319,1749423033042,-440.0,0.00019178,2]
[365042321,1749423033052,-702.69,0.00019178,2]
[365042323,1749423033062,-440.0,0.00019178,2]
[365042325,1749423033071,-440.0,0.00019178,2]
[365042327,1749423033082,-1003.03,0.00019178,2]
[365042329,1749423033091,-420.0,0.00019178,2]
[365042331,1749423033100,-465.63,0.00019178,2]
[365042333,1749423033110,-440.0,0.00019178,2]
[365042335,1749423033120,-440.0,0.00019178,2]
[365042338,1749423033130,-440.0,0.00019178,2]
[365042340,1749423033140,-440.0,0.00019178,2]
[365042342,1749423033152,-1299.74,0.00019178,2]
[365042344,1749423033162,-440.0,0.00019178,2]
[365042346,1749423033172,-440.0,0.00019178,2]
[365042348,1749423033182,-440.0,0.00019178,2]
[365042350,1749423033191,-1166.73,0.00019178,2]
[365042352,1749423033201,-440.0,0.00019178,2]
[365042354,1749423033211,-1144.95,0.00019178,2]
[365042356,1749423033220,-573.32,0.00019178,2]
[365042358,1749423033230,-440.0,0.00019178,2]
[365042360,1749423033240,-440.0,0.00019178,2]
[365042361,1749423033250,-440.0,0.00019178,2]
[365042362,1749423033260,-440.0,0.00019178,2]
[365042363,1749423033269,-440.0,0.00019178,2]
[365042365,1749423033279,-440.0,0.00019178,2]
[365042367,1749423033289,-444.0,0.00019178,2]
[365042369,1749423033299,-620.21,0.00019178,2]
[365042371,1749423033309,-1142.98,0.00019178,2]
[365042372,1749423033319,-440.0,0.00019452,2]
[365042373,1749423033328,-284.67,0.00019452,2]
[365042374,1749423033338,-440.0,0.00019452,2]
[365042375,1749423033348,-440.0,0.00019452,2]
[365042376,1749423033358,-440.0,0.00019452,2]
[365042377,1749423033367,-440.0,0.00019452,2]
[365042378,1749423033378,-1142.78,0.00019452,2]
[365042379,1749423033387,-440.0,0.00019452,2]
[365042380,1749423033397,-440.0,0.00019452,2]
[365042381,1749423033407,-454.93,0.00019452,2]
[365042382,1749423033417,-440.0,0.00019452,2]
[365042383,1749423033429,-440.0,0.00019452,2]
[365042384,1749423033439,-440.0,0.00019452,2]
[365042385,1749423033449,-154.33,0.00019452,2]
[365042386,1749423033459,-440.0,0.00019452,2]
[365042387,1749423033468,-440.0,0.00019452,2]
[365042388,1749423033478,-440.0,0.00019452,2]
[365042389,1749423033488,-440.0,0.00019452,2]
[365042390,1749423033498,-440.0,0.00019452,2]
[365042391,1749423033508,-440.0,0.00019452,2]
[365042392,1749423033518,-1198.02,0.00019452,2]
[365042393,1749423033528,-440.0,0.00019452,2]
[365042394,1749423033538,-440.0,0.00019452,2]
[365042395,1749423033548,-702.69,0.00019452,2]
[365042396,1749423033558,-440.0,0.00019452,2]
[365042397,1749423033568,-440.0,0.00019452,2]
[365042398,1749423033578,-1003.03,0.00019452,2]
[365042399,1749423033588,-465.63,0.00019452,2]
[365042400,1749423033598,-440.0,0.00019452,2]
[365042401,1749423033608,-440.0,0.00019452,2]
[365042402,1749423033619,-440.0,0.00019452,2]
[365042403,1749423033629,-1299.74,0.00019452,2]
[365042404,1749423033639,-440.0,0.00019452,2]
[365042405,1749423033650,-1166.73,0.00019452,2]
[365042406,1749423033661,-1144.95,0.00019452,2]
[365042407,1749423033671,-573.32,0.00019452,2]
[365042408,1749423033682,-440.0,0.00019452,2]
[365042409,1749423033693,-440.0,0.00019452,2]
[365042410,1749423033703,-440.0,0.00019452,2]
[365042411,1749423033718,-440.0,0.00019452,2]
[365042412,1749423033729,-391.76,0.00019452,2]
[365042413,1749423033739,-440.0,0.00019452,2]
[365042414,1749423033750,-444.0,0.00019452,2]
[365042415,1749423033762,-620.21,0.00019452,2]
[365042416,1749423033773,-1142.98,0.00019452,2]
[365042417,1749423033783,-440.0,0.00019726,2]
[365042418,1749423033794,-440.0,0.00019726,2]
[365042419,1749423033804,-440.0,0.00019726,2]
[365042420,1749423033814,-440.0,0.00019726,2]
[365042421,1749423033824,-1142.78,0.00019726,2]
[365042422,1749423033834,-430.0,0.00019726,2]
[365042423,1749423033844,-454.93,0.00019726,2]
[365042424,1749423033856,-440.0,0.00019726,2]
[365042425,1749423033866,-440.0,0.00019726,2]
[365042426,1749423033875,-440.0,0.00019726,2]
[365042427,1749423033886,-440.0,0.00019726,2]
[365042428,1749423033896,-440.0,0.00019726,2]
[365042429,1749423033907,-440.0,0.00019726,2]
[365042430,1749423033918,-440.0,0.00019726,2]
[365042431,1749423033928,-1198.02,0.00019726,2]
[365042432,1749423033938,-440.0,0.00019726,2]
[365042433,1749423033948,-702.69,0.00019726,2]
[365042434,1749423033958,-440.0,0.00019726,2]
[365042435,1749423033967,-1003.03,0.00019726,2]
[365042436,1749423033977,-465.63,0.00019726,2]
[365042437,1749423033987,-440.0,0.00019726,2]
[365042438,1749423033997,-440.0,0.00019726,2]
[365042439,1749423034007,-1299.74,0.00019726,2]
[365042440,1749423034017,-440.0,0.00019726,2]
[365042441,1749423034027,-1166.73,0.00019726,2]
[365042442,1749423034037,-1144.95,0.00019726,2]
[365042443,1749423034047,-573.32,0.00019726,2]
[365042444,1749423034057,-440.0,0.00019726,2]
[365042445,1749423034067,-440.0,0.00019726,2]
[365042446,1749423034078,-440.0,0.00019726,2]
[365042447,1749423034087,-440.0,0.00019726,2]
[365042448,1749423034097,-440.0,0.00019726,2]
[365042449,1749423034107,-444.0,0.00019726,2]
[365042450,1749423034116,-285.8012538,0.00019726,2]
[365042451,1749423034131,-334.4087462,0.00019726,2]
[365042452,1749423034141,-315.0941153,0.00019726,2]
[365042453,1749423034171,-827.8858847,0.00019726,2]
[365042454,1749423034181,-438.63868862,0.00019758,2]
[365042455,1749423034191,-501.49495753,0.00019865,2]
[365042456,1749423034200,-480.10791465,0.00019877,2]
[365042466,1749423038271,-294.07208535,0.00019877,2]
[365042467,1749423038283,-3894.4495557,0.000199,2]
[365042468,1749423038297,-272.5430213,0.000199,2]
[365042469,1749423038309,-3530.36283927,0.000199,2]
[365042470,1749423038328,-6851.22994436,0.000199,2]
[365042471,1749423038339,-500.0,0.00019921,2]
[365042472,1749423038349,-541.63820157,0.00019997,2]
[365042473,1749423038360,-500.0,0.00019997,2]
[365042474,1749423038369,-500.0,0.00019997,2]
[365042475,1749423038380,-500.0,0.00019997,2]
[365042476,1749423038390,-500.0,0.00019997,2]
[365042477,1749423038400,-500.0,0.00019997,2]
[365042478,1749423038410,-500.0,0.00019997,2]
[365042479,1749423038421,-500.0,0.00019997,2]
[365042480,1749423038431,-500.0,0.00019997,2]
[365042481,1749423038442,-500.0,0.00019997,2]
[365042482,1749423038452,-500.0,0.00019997,2]
[365042483,1749423038462,-257.58296521,0.0002,2]
[365042484,1749423038472,-440.0,0.0002,2]
[365042485,1749423038482,-440.0,0.0002,2]
[365042486,1749423038492,-440.0,0.0002,2]
[365042487,1749423038502,-440.0,0.0002,2]
[365042488,1749423038513,-1142.78,0.0002,2]
[365042489,1749423038523,-454.93,0.0002,2]
[365042490,1749423038532,-440.0,0.0002,2]
[365042491,1749423038542,-440.0,0.0002,2]
[365042492,1749423038551,-440.0,0.0002,2]
[365042493,1749423038561,-440.0,0.0002,2]
[365042494,1749423038570,-440.0,0.0002,2]
[365042495,1749423038579,-440.0,0.0002,2]
[365042496,1749423038588,-1198.02,0.0002,2]
[365042497,1749423038598,-440.0,0.0002,2]
[365042498,1749423038608,-702.69,0.0002,2]
[365042499,1749423038617,-440.0,0.0002,2]
[365042500,1749423038627,-1003.03,0.0002,2]
[365042501,1749423038636,-465.63,0.0002,2]
[365042502,1749423038647,-440.0,0.0002,2]
[365042503,1749423038656,-440.0,0.0002,2]
[365042504,1749423038666,-1299.74,0.0002,2]
[365042505,1749423038675,-1166.73,0.0002,2]
[365042506,1749423038685,-1144.95,0.0002,2]
[365042507,1749423038695,-573.32,0.0002,2]
[365042508,1749423038706,-440.0,0.0002,2]
[365042509,1749423038717,-440.0,0.0002,2]
[365042510,1749423038727,-440.0,0.0002,2]
[365042511,1749423038737,-444.0,0.0002,2]
[365042512,1749423038747,-620.21,0.0002,2]
[365042513,1749423038757,-1142.98,0.0002,2]
[365042514,1749423038773,-229.60437222,0.00020031,2]
[365042515,1749423038783,-160.0,0.00020033,2]
[365042516,1749423038793,-11853.97844947,0.00020033,2]
[365042517,1749423038803,-160.0,0.00020033,2]
[365042518,1749423038814,-423.98131849,0.00020033,2]
[365042519,1749423038824,-842.5625,0.00020033,2]
[365042520,1749423038834,-160.0,0.00020035,2]
[365042521,1749423038846,-160.0,0.00020035,2]
[365042522,1749423038856,-213.05153702,0.00020035,2]
[365042523,1749423038866,-153.81,0.00020133,2]
[365042524,1749423038875,-294.664524,0.00020187,2]
[365042525,1749423038885,-263.44,0.00020263,3]
[365042526,1749423038895,-790.36,0.00020263,3]
[365042527,1749423038904,-479.07,0.00020273,2]
[365042528,1749423038914,-440.0,0.00020273,2]
[365042529,1749423038923,-242.76288419,0.00020273,2]
[365042530,1749423038935,-440.0,0.00020273,2]
[365042531,1749423038944,-1142.78,0.00020273,2]
[365042532,1749423038954,-454.93,0.00020273,2]
[365042533,1749423038964,-440.0,0.00020273,2]
[365042534,1749423038974,-440.0,0.00020273,2]
[365042535,1749423038983,-492.05,0.00020273,2]
[365042536,1749423038993,-440.0,0.00020273,2]
[365042537,1749423039003,-440.0,0.00020273,2]
[365042538,1749423039013,-1198.02,0.00020273,2]
[365042539,1749423039023,-440.0,0.00020273,2]
[365042540,1749423039033,-702.69,0.00020273,2]
[365042541,1749423039042,-440.0,0.00020273,2]
[365042542,1749423039053,-1003.03,0.00020273,2]
[365042543,1749423039063,-465.63,0.00020273,2]
[365042544,1749423039074,-397.56,0.00020273,2]
[365042545,1749423039083,-1299.74,0.00020273,2]
[365042546,1749423039093,-1166.73,0.00020273,2]
[365042547,1749423039102,-1144.95,0.00020273,2]
[365042548,1749423039112,-573.32,0.00020273,2]
[365042549,1749423039121,-440.0,0.00020273,2]
[365042550,1749423039131,-440.0,0.00020273,2]
[365042551,1749423039141,-440.0,0.00020273,2]
[365042552,1749423039151,-444.0,0.00020273,2]
[365042553,1749423039161,-620.21,0.00020273,2]
[365042554,1749423039171,-1142.98,0.00020273,2]
[365042555,1749423039181,-472.61791048,0.00020349,2]
[365042556,1749423039192,-500.0,0.00020377,2]
[365042557,1749423039202,-164.71,0.00020547,2]
[365042558,1749423039212,-1142.78,0.00020547,2]
[365042559,1749423039224,-454.93,0.00020547,2]
[365042560,1749423039236,-440.0,0.00020547,2]
[365042561,1749423039246,-440.0,0.00020547,2]
[365042562,1749423039255,-440.0,0.00020547,2]
[365042563,1749423039265,-1198.02,0.00020547,2]
[365042564,1749423039274,-440.0,0.00020547,2]
[365042565,1749423039284,-702.69,0.00020547,2]
[365042566,1749423039294,-440.0,0.00020547,2]
[365042567,1749423039304,-1003.03,0.00020547,2]
[365042568,1749423039315,-465.63,0.00020547,2]
[365042569,1749423039325,-1299.74,0.00020547,2]
[365042570,1749423039335,-1166.73,0.00020547,2]
[365042571,1749423039345,-1144.95,0.00020547,2]
[365042572,1749423039355,-573.32,0.00020547,2]
[365042573,1749423039364,-500.0,0.00020547,2]
[365042574,1749423039374,-440.0,0.00020547,2]
[365042575,1749423039384,-440.0,0.00020547,2]
[365042576,1749423039394,-440.0,0.00020547,2]
[365042577,1749423039403,-444.0,0.00020547,2]
[365042578,1749423039414,-620.21,0.00020547,2]
[365042579,1749423039423,-1142.98,0.00020547,2]
[365042580,1749423039433,-280.54341085,0.00020548,2]
[365042581,1749423039443,-408.15,0.000206,2]
[365042582,1749423039453,-202.00238399,0.00020614,2]
[365042583,1749423039463,-967.72,0.00020706,2]
[365042584,1749423039474,-900.0,0.00020765,2]
[365042585,1749423039486,-188.87147072,0.00020799,2]
[365042586,1749423039495,-309.05,0.00020811,10]
[365042587,1749423039506,-1142.78,0.00020821,2]
[365042588,1749423039516,-454.93,0.00020821,2]
[365042589,1749423039527,-440.0,0.00020821,2]
[365042590,1749423039537,-286.58,0.00020821,2]
[365042591,1749423039547,-440.0,0.00020821,2]
[365042592,1749423039558,-1198.02,0.00020821,2]
[365042593,1749423039569,-440.0,0.00020821,2]
[365042594,1749423039578,-702.69,0.00020821,2]
[365042595,1749423039588,-440.0,0.00020821,2]
[365042596,1749423039598,-1003.03,0.00020821,2]
[365042597,1749423039608,-465.63,0.00020821,2]
[365042598,1749423039618,-1299.74,0.00020821,2]
[365042599,1749423039628,-1166.73,0.00020821,2]
[365042600,1749423039639,-1144.95,0.00020821,2]
[365042601,1749423039650,-573.32,0.00020821,2]
[365042602,1749423039660,-440.0,0.00020821,2]
[365042603,1749423039671,-440.0,0.00020821,2]
[365042604,1749423039682,-440.0,0.00020821,2]
[365042605,1749423039691,-444.0,0.00020821,2]
[365042606,1749423039702,-620.21,0.00020821,2]
[365042607,1749423039711,-1142.98,0.00020821,2]
[365042608,1749423039722,-420.0,0.00020899,2]
[365042609,1749423039732,-420.0,0.00020899,2]
[365042610,1749423039742,-2658.22873535,0.000209,4]
[365042611,1749423039751,-1000.0,0.00020925,2]
[365042612,1749423039761,-2658.22873509,0.00021038,4]
[365042613,1749423039774,-1142.78,0.00021095,2]
[365042614,1749423039784,-454.93,0.00021095,2]
[365042616,1749423039795,-440.0,0.00021095,2]
[365042617,1749423039805,-440.0,0.00021095,2]
[365042618,1749423039953,-1198.02,0.00021095,2]
[365042619,1749423039964,-440.0,0.00021095,2]
[365042620,1749423039974,-702.69,0.00021095,2]
[365042621,1749423039985,-440.0,0.00021095,2]
[365042622,1749423039997,-1003.03,0.00021095,2]
[365042623,1749423040006,-465.63,0.00021095,2]
[365042624,1749423040017,-1299.74,0.00021095,2]
[365042625,1749423040028,-1166.73,0.00021095,2]
[365042626,1749423040039,-1144.95,0.00021095,2]
[365042627,1749423040051,-573.32,0.00021095,2]
[365042628,1749423040061,-500.0,0.00021095,3]
[365042629,1749423040071,-440.0,0.00021095,2]
[365042630,1749423040081,-440.0,0.00021095,2]
[365042631,1749423040091,-235.65556232,0.00021095,2]
[365042632,1749423040104,-444.0,0.00021095,2]
[365042633,1749423040114,-620.21,0.00021095,2]
[365042634,1749423040124,-1142.98,0.00021095,2]
[365042635,1749423040134,-2658.22873509,0.00021176,4]
[365042636,1749423040143,-2658.22873509,0.00021314,5]
[365042637,1749423040154,-207.4,0.0002135,2]
[365042638,1749423040164,-151.0,0.00021352,2]
[365042639,1749423040174,-225.737208,0.00021352,2]
[365042640,1749423040184,-198.0,0.00021352,2]
[365042641,1749423040194,-151.0,0.00021352,2]
[365042642,1749423040204,-228.99856483,0.00021352,2]
[365042643,1749423040213,-1142.78,0.00021369,2]
[365042644,1749423040223,-454.93,0.00021369,2]
[365042645,1749423040232,-440.0,0.00021369,2]
[365042646,1749423040242,-440.0,0.00021369,2]
[365042647,1749423040252,-1198.02,0.00021369,2]
[365042648,1749423040262,-440.0,0.00021369,2]
[365042649,1749423040272,-702.69,0.00021369,2]
[365042650,1749423040282,-440.0,0.00021369,2]
[365042651,1749423040292,-1003.03,0.00021369,2]
[365042652,1749423040303,-465.63,0.00021369,2]
[365042653,1749423040313,-1299.74,0.00021369,2]
[365042654,1749423040323,-1166.73,0.00021369,2]
[365042655,1749423040334,-1144.95,0.00021369,2]
[365042656,1749423040343,-573.32,0.00021369,2]
[365042657,1749423040354,-440.0,0.00021369,2]
[365042658,1749423040364,-440.0,0.00021369,2]
[365042659,1749423040373,-444.0,0.00021369,2]
[365042661,1749423040383,-620.21,0.00021369,2]
[365042662,1749423040393,-1142.98,0.00021369,2]
[365042663,1749423040405,-151.0,0.00021379,2]
[365042664,1749423040416,-151.0,0.00021379,2]
[365042665,1749423040426,-202.00238399,0.00021382,2]
[365042666,1749423040436,-1139.25,0.000214,2]
[365042667,1749423040446,-2658.22873509,0.00021452,5]
[365042668,1749423040457,-188.87147072,0.00021524,2]
[365042669,1749423040466,-1161.27,0.00021534,2]
[365042670,1749423040476,-2658.22873509,0.0002159,5]
[365042671,1749423040486,-526.88,0.00021633,3]
[365042672,1749423040496,-1142.78,0.00021643,2]
[365042673,1749423040506,-454.93,0.00021643,2]
[365042674,1749423040516,-440.0,0.00021643,2]
[365042675,1749423040526,-440.0,0.00021643,2]
[365042676,1749423040537,-1198.02,0.00021643,2]
[365042677,1749423040547,-440.0,0.00021643,2]
[365042678,1749423040557,-702.69,0.00021643,2]
[365042679,1749423040568,-440.0,0.00021643,2]
[365042680,1749423040577,-1003.03,0.00021643,2]
[365042681,1749423040588,-465.63,0.00021643,2]
[365042682,1749423040598,-1299.74,0.00021643,2]
[365042683,1749423040609,-1166.73,0.00021643,2]
[365042684,1749423040619,-1144.95,0.00021643,2]
[365042685,1749423040630,-573.32,0.00021643,2]
[365042686,1749423040641,-500.0,0.00021643,4]
[365042687,1749423040652,-440.0,0.00021643,2]
[365042688,1749423040662,-440.0,0.00021643,2]
[365042689,1749423040673,-444.0,0.00021643,2]
[365042690,1749423040682,-620.21,0.00021643,2]
[365042691,1749423040692,-1142.98,0.00021643,2]
[365042692,1749423040702,-463.05660411,0.0002168,2]
[365042693,1749423040712,-2658.22873509,0.00021728,5]
[365042694,1749423040722,-500.0,0.00021842,2]
[365042695,1749423040732,-900.0,0.00021861,2]
[365042696,1749423040742,-2658.22873509,0.00021866,6]
[365042697,1749423040752,-97703.23690009,0.000219,2]
[365042698,1749423040762,-1142.78,0.00021917,2]
[365042699,1749423040774,-454.93,0.00021917,2]
[365042700,1749423040784,-440.0,0.00021917,2]
[365042701,1749423040794,-440.0,0.00021917,2]
[365042702,1749423040804,-1198.02,0.00021917,2]
[365042703,1749423040814,-440.0,0.00021917,2]
[365042704,1749423040824,-440.0,0.00021917,2]
[365042705,1749423040834,-702.69,0.00021917,2]
[365042706,1749423040844,-1003.03,0.00021917,2]
[365042707,1749423040855,-465.63,0.00021917,2]
[365042708,1749423040864,-1299.74,0.00021917,2]